[Event "18èmeFestival International d’Echecsde Rochefort"]
[Site "Rochefort, France"]
[Date "2019.02.17"]
[Round "2.5"]
[White "GUIDARELLI, Laurent"]
[Black "SAENZ NARCISO, Miguel Angel"]
[Result "1-0"]
[TimeControl "1h30 min/40coups + 30 min +  30sec/coup"]
[WhiteTitle "GM"]
[WhiteFideId "611123"]
[WhiteElo "2465"]
[BlackElo "2204"]

1. d4 {[%clk 01:30:57]} {[%emt 00:00:01]} Nf6 {[%clk 01:30:44]} {[%emt
00:00:16]} 2. c4 {[%clk 01:31:23]} {[%emt 00:00:05]} c5 {[%clk 01:31:00]}
{[%emt 00:00:14]} 3. d5 {[%clk 01:31:48]} {[%emt 00:00:05]} b5 {[%clk
01:31:20]} {[%emt 00:00:09]} 4. cxb5 {[%clk 01:32:14]} {[%emt 00:00:05]} a6
{[%clk 01:31:42]} {[%emt 00:00:09]} 5. bxa6 {[%clk 01:32:41]} {[%emt 00:00:04]}
g6 {[%clk 01:32:00]} {[%emt 00:00:11]} 6. Nc3 {[%clk 01:33:06]} {[%emt
00:00:05]} Bxa6 {[%clk 01:32:17]} {[%emt 00:00:12]} 7. g3 {[%clk 01:33:32]}
{[%emt 00:00:04]} d6 {[%clk 01:32:21]} {[%emt 00:00:27]} 8. Bg2 {[%clk
01:33:57]} {[%emt 00:00:05]} Bg7 {[%clk 01:32:26]} {[%emt 00:00:24]} 9. Nf3
{[%clk 01:34:22]} {[%emt 00:00:06]} Nbd7 {[%clk 01:32:30]} {[%emt 00:00:26]} 10.
Rb1 {[%clk 01:34:46]} {[%emt 00:00:06]} Nb6 {[%clk 01:31:08]} {[%emt 00:01:51]}
11. b3 {[%clk 01:35:11]} {[%emt 00:00:05]} Bc8 {[%clk 01:28:19]} {[%emt
00:03:19]} 12. Nh4 {[%clk 01:35:33]} {[%emt 00:00:08]} h6 {[%clk 01:27:51]}
{[%emt 00:00:58]} 13. Qc2 {[%clk 01:35:57]} {[%emt 00:00:07]} Qd7 {[%clk
01:27:16]} {[%emt 00:01:05]} 14. Bb2 {[%clk 01:33:55]} {[%emt 00:02:32]} g5
{[%clk 01:26:05]} {[%emt 00:01:41]} 15. Nf3 {[%clk 01:34:13]} {[%emt 00:00:11]}
Qf5 {[%clk 01:26:19]} {[%emt 00:00:16]} 16. e4 {[%clk 01:34:30]} {[%emt
00:00:13]} Qg6 {[%clk 01:26:39]} {[%emt 00:00:10]} 17. O-O {[%clk 01:33:55]}
{[%emt 00:01:05]} O-O {[%clk 01:18:08]} {[%emt 00:09:01]} 18. Qd1 {[%clk
01:19:57]} {[%emt 00:14:28]} Ng4 {[%clk 01:14:00]} {[%emt 00:04:38]} 19. h3
{[%clk 00:59:13]} {[%emt 00:21:14]} Ne5 {[%clk 01:13:44]} {[%emt 00:00:47]} 20.
Nxe5 {[%clk 00:59:11]} {[%emt 00:00:32]} Bxe5 {[%clk 01:14:02]} {[%emt
00:00:11]} 21. Ne2 {[%clk 00:59:22]} {[%emt 00:00:19]} Rxa2 {[%clk 01:05:23]}
{[%emt 00:09:10]} 22. Bxe5 {[%clk 00:57:22]} {[%emt 00:02:30]} dxe5 {[%clk
01:05:48]} {[%emt 00:00:05]} 23. Nc1 {[%clk 00:57:27]} {[%emt 00:00:25]} Ra8
{[%clk 00:59:56]} {[%emt 00:06:22]} 24. Nd3 {[%clk 00:57:33]} {[%emt 00:00:24]}
Ba6 {[%clk 00:45:51]} {[%emt 00:14:35]} 25. Nxe5 {[%clk 00:56:58]} {[%emt
00:01:05]} Qd6 {[%clk 00:42:06]} {[%emt 00:04:14]} 26. Nd3 {[%clk 00:56:04]}
{[%emt 00:01:24]} c4 {[%clk 00:32:44]} {[%emt 00:09:52]} 27. bxc4 {[%clk
00:51:52]} {[%emt 00:04:43]} Nxc4 {[%clk 00:32:51]} {[%emt 00:00:23]} 28. Re1
{[%clk 00:51:58]} {[%emt 00:00:23]} Ne5 {[%clk 00:31:02]} {[%emt 00:02:19]} 29.
Nxe5 {[%clk 00:51:29]} {[%emt 00:00:59]} Qxe5 {[%clk 00:31:28]} {[%emt
00:00:04]} 30. Rb6 {[%clk 00:51:43]} {[%emt 00:00:16]} Kg7 {[%clk 00:30:44]}
{[%emt 00:01:15]} 31. Qh5 {[%clk 00:29:52]} {[%emt 00:22:21]} e6 {[%clk
00:17:27]} {[%emt 00:13:47]} 32. Rd1 {[%clk 00:27:54]} {[%emt 00:02:27]} Bc4
{[%clk 00:17:23]} {[%emt 00:00:34]} 33. dxe6 {[%clk 00:18:34]} {[%emt
00:09:51]} Bxe6 {[%clk 00:17:41]} {[%emt 00:00:12]} 34. Qe2 {[%clk 00:18:47]}
{[%emt 00:00:17]} Ra2 {[%clk 00:17:14]} {[%emt 00:00:56]} 35. Rd2 {[%clk
00:19:07]} {[%emt 00:00:10]} Rfa8 {[%clk 00:13:30]} {[%emt 00:04:14]} 36. Rbb2
{[%clk 00:12:56]} {[%emt 00:06:42]} Bc4 {[%clk 00:11:39]} {[%emt 00:02:21]} 37.
Rxa2 {[%clk 00:13:12]} {[%emt 00:00:14]} Rxa2 {[%clk 00:11:10]} {[%emt
00:00:58]} 38. Qe3 {[%clk 00:12:58]} {[%emt 00:00:44]} Rxd2 {[%clk 00:10:04]}
{[%emt 00:01:36]} 39. Qxd2 {[%clk 00:13:27]} {[%emt 00:00:02]} f6 {[%clk
00:03:43]} {[%emt 00:06:50]} 40. Qd7+ {[%clk 00:13:11]} {[%emt 00:00:46]} Bf7
{[%clk 00:03:53]} {[%emt 00:00:20]} 41. Qa7 {[%clk 00:08:05]} {[%emt 00:05:36]}
Kg8 {[%clk 00:27:19]} {[%emt 00:07:04]} 42. Qe3 {[%clk 00:36:43]} {[%emt
00:01:52]} f5 {[%clk 00:26:11]} {[%emt 00:01:38]} 43. exf5 {[%clk 00:35:52]}
{[%emt 00:01:21]} Qxf5 {[%clk 00:26:36]} {[%emt 00:00:06]} 44. Qd4 {[%clk
00:36:16]} {[%emt 00:00:05]} Qe6 {[%clk 00:23:21]} {[%emt 00:03:45]} 45. h4
{[%clk 00:33:55]} {[%emt 00:02:51]} Qc4 {[%clk 00:15:34]} {[%emt 00:08:17]} 46.
Qd8+ {[%clk 00:31:19]} {[%emt 00:03:05]} Kg7 {[%clk 00:15:42]} {[%emt
00:00:22]} 47. hxg5 {[%clk 00:30:33]} {[%emt 00:01:16]} Qc1+ {[%clk 00:16:07]}
{[%emt 00:00:04]} 48. Kh2 {[%clk 00:30:55]} {[%emt 00:00:08]} hxg5 {[%clk
00:15:10]} {[%emt 00:01:28]} 49. Qd4+ {[%clk 00:29:32]} {[%emt 00:01:53]} Kg8
{[%clk 00:14:27]} {[%emt 00:01:13]} 50. Be4 {[%clk 00:29:02]} {[%emt 00:01:01]}
Qc7 {[%clk 00:12:57]} {[%emt 00:02:00]} 51. Qf6 {[%clk 00:25:23]} {[%emt
00:04:07]} Qc1 {[%clk 00:08:41]} {[%emt 00:04:46]} 52. Qh6 {[%clk 00:23:13]}
{[%emt 00:02:40]} Bb3 {[%clk 00:06:57]} {[%emt 00:02:15]} 53. Bh7+ {[%clk
00:22:26]} {[%emt 00:01:16]} Kf7 {[%clk 00:07:19]} {[%emt 00:00:09]} 54. Qg6+
{[%clk 00:22:48]} {[%emt 00:00:08]} Ke7 {[%clk 00:06:40]} {[%emt 00:01:09]} 55.
Qg7+ {[%clk 00:23:05]} {[%emt 00:00:13]} Ke8 {[%clk 00:06:00]} {[%emt
00:01:10]} 56. Bg6+ {[%clk 00:23:03]} {[%emt 00:00:31]} Kd8 {[%clk 00:06:27]}
{[%emt 00:00:04]} 57. Qf8+ {[%clk 00:23:14]} {[%emt 00:00:19]} Kc7 {[%clk
00:06:30]} {[%emt 00:00:27]} 58. Qe7+ {[%clk 00:23:20]} {[%emt 00:00:24]} Kb6
{[%clk 00:06:17]} {[%emt 00:00:43]} 59. Qb4+ {[%clk 00:23:37]} {[%emt
00:00:12]} 1-0

[Event "18èmeFestival International d’Echecsde Rochefort"]
[Site "Rochefort, France"]
[Date "2019.02.17"]
[Round "2.3"]
[White "DEMUTH, Adrien"]
[Black "COURSAGET, Nicolas"]
[Result "1-0"]
[TimeControl "1h30 min/40coups + 30 min +  30sec/coup"]
[WhiteTitle "GM"]
[BlackTitle "FM"]
[WhiteFideId "642274"]
[BlackFideId "610127"]
[WhiteElo "2519"]
[BlackElo "2264"]

1. e4 {[%clk 01:28:24]} {[%emt 00:02:36]} Nf6 {[%clk 01:02:13]} {[%emt
00:28:47]} 2. e5 {[%clk 01:28:42]} {[%emt 00:00:12]} Nd5 {[%clk 01:02:39]}
{[%emt 00:00:04]} 3. d4 {[%clk 01:29:03]} {[%emt 00:00:09]} d6 {[%clk
01:03:02]} {[%emt 00:00:08]} 4. c4 {[%clk 01:29:17]} {[%emt 00:00:16]} Nb6
{[%clk 01:03:27]} {[%emt 00:00:06]} 5. exd6 {[%clk 01:29:41]} {[%emt 00:00:06]}
exd6 {[%clk 01:03:54]} {[%emt 00:00:02]} 6. Nc3 {[%clk 01:29:53]} {[%emt
00:00:17]} Bf5 {[%clk 01:02:18]} {[%emt 00:02:06]} 7. Nf3 {[%clk 01:18:06]}
{[%emt 00:12:17]} Be7 {[%clk 01:01:24]} {[%emt 00:01:24]} 8. Be2 {[%clk
01:15:46]} {[%emt 00:02:51]} O-O {[%clk 00:57:07]} {[%emt 00:04:47]} 9. O-O
{[%clk 01:16:12]} {[%emt 00:00:05]} a5 {[%clk 00:57:02]} {[%emt 00:00:35]} 10.
Be3 {[%clk 01:08:53]} {[%emt 00:07:49]} Na6 {[%clk 00:48:50]} {[%emt 00:08:42]}
11. h3 {[%clk 00:49:15]} {[%emt 00:20:07]} h6 {[%clk 00:46:30]} {[%emt
00:02:50]} 12. b3 {[%clk 00:47:19]} {[%emt 00:02:27]} a4 {[%clk 00:40:19]}
{[%emt 00:06:41]} 13. bxa4 {[%clk 00:39:20]} {[%emt 00:08:29]} Nb4 {[%clk
00:34:09]} {[%emt 00:06:40]} 14. Rc1 {[%clk 00:37:25]} {[%emt 00:02:25]} Qd7
{[%clk 00:27:57]} {[%emt 00:06:42]} 15. a3 {[%clk 00:31:16]} {[%emt 00:06:40]}
Nc6 {[%clk 00:27:17]} {[%emt 00:01:09]} 16. c5 {[%clk 00:30:28]} {[%emt
00:01:17]} dxc5 {[%clk 00:26:35]} {[%emt 00:01:12]} 17. dxc5 {[%clk 00:29:23]}
{[%emt 00:01:35]} Qxd1 {[%clk 00:26:53]} {[%emt 00:00:13]} 18. Rfxd1 {[%clk
00:24:56]} {[%emt 00:04:57]} Nxa4 {[%clk 00:26:10]} {[%emt 00:01:12]} 19. Nd5
{[%clk 00:24:44]} {[%emt 00:00:42]} Bd8 {[%clk 00:25:22]} {[%emt 00:01:19]} 20.
Bb5 {[%clk 00:16:01]} {[%emt 00:09:13]} Be4 {[%clk 00:22:03]} {[%emt 00:03:49]}
21. Bf4 {[%clk 00:10:33]} {[%emt 00:05:58]} Nb2 {[%clk 00:20:45]} {[%emt
00:01:49]} 22. Rd2 {[%clk 00:10:21]} {[%emt 00:00:42]} Rxa3 {[%clk 00:19:43]}
{[%emt 00:01:32]} 23. Nxc7 {[%clk 00:04:09]} {[%emt 00:06:42]} Nd3 {[%clk
00:18:02]} {[%emt 00:02:11]} 24. Bxd3 {[%clk 00:04:30]} {[%emt 00:00:09]} Bxc7
{[%clk 00:17:41]} {[%emt 00:00:50]} 25. Bxc7 {[%clk 00:04:06]} {[%emt
00:00:54]} Rxd3 {[%clk 00:16:20]} {[%emt 00:01:52]} 26. Rxd3 {[%clk 00:03:27]}
{[%emt 00:01:08]} Bxd3 {[%clk 00:16:49]} {[%emt 00:00:01]} 27. Rc3 {[%clk
00:03:00]} {[%emt 00:00:57]} Rc8 {[%clk 00:15:23]} {[%emt 00:01:56]} 28. Bd6
{[%clk 00:02:14]} {[%emt 00:01:16]} Ba6 {[%clk 00:15:48]} {[%emt 00:00:05]} 29.
Re3 {[%clk 00:02:23]} {[%emt 00:00:20]} f6 {[%clk 00:13:51]} {[%emt 00:02:27]}
30. Nh4 {[%clk 00:02:32]} {[%emt 00:00:21]} Nd4 {[%clk 00:10:26]} {[%emt
00:03:55]} 31. Re4 {[%clk 00:02:41]} {[%emt 00:00:21]} Nb3 {[%clk 00:10:26]}
{[%emt 00:00:30]} 32. Nf5 {[%clk 00:02:16]} {[%emt 00:00:55]} Kf7 {[%clk
00:07:34]} {[%emt 00:03:23]} 33. Re7+ {[%clk 00:02:18]} {[%emt 00:00:27]} Kg6
{[%clk 00:07:42]} {[%emt 00:00:21]} 34. g4 {[%clk 00:02:39]} {[%emt 00:00:09]}
Rg8 {[%clk 00:07:00]} {[%emt 00:01:12]} 35. Re3 {[%clk 00:03:05]} {[%emt
00:00:04]} Bc4 {[%clk 00:06:35]} {[%emt 00:00:55]} 36. Ne7+ {[%clk 00:03:30]}
{[%emt 00:00:05]} Kf7 {[%clk 00:06:59]} {[%emt 00:00:07]} 37. Nxg8 {[%clk
00:03:56]} {[%emt 00:00:04]} Kxg8 {[%clk 00:07:26]} {[%emt 00:00:03]} 38. Re8+
{[%clk 00:03:32]} {[%emt 00:00:54]} Kh7 {[%clk 00:07:22]} {[%emt 00:00:34]} 39.
Bf8 {[%clk 00:02:44]} {[%emt 00:01:18]} Nd4 {[%clk 00:06:48]} {[%emt 00:01:04]}
40. Re4 {[%clk 00:01:57]} {[%emt 00:01:16]} Nf3+ {[%clk 00:06:24]} {[%emt
00:00:55]} 41. Kg2 {[%clk 00:30:19]} {[%emt 00:02:07]} Ne5 {[%clk 00:36:41]}
{[%emt 00:00:14]} 42. Re3 {[%clk 00:28:49]} {[%emt 00:02:00]} g5 {[%clk
00:35:40]} {[%emt 00:01:31]} 43. Bd6 {[%clk 00:28:04]} {[%emt 00:01:15]} Nf7
{[%clk 00:35:42]} {[%emt 00:00:28]} 44. Re8 {[%clk 00:27:05]} {[%emt 00:01:28]}
Kg6 {[%clk 00:26:21]} {[%emt 00:09:51]} 45. Rg8+ {[%clk 00:19:18]} {[%emt
00:08:18]} Kh7 {[%clk 00:26:45]} {[%emt 00:00:05]} 46. Rf8 {[%clk 00:19:40]}
{[%emt 00:00:09]} Kg6 {[%clk 00:27:11]} {[%emt 00:00:05]} 47. Kg3 {[%clk
00:16:40]} {[%emt 00:03:30]} h5 {[%clk 00:23:12]} {[%emt 00:04:29]} 48. f4
{[%clk 00:12:46]} {[%emt 00:04:25]} hxg4 {[%clk 00:21:16]} {[%emt 00:02:26]} 49.
hxg4 {[%clk 00:11:58]} {[%emt 00:01:18]} gxf4+ {[%clk 00:21:12]} {[%emt
00:00:34]} 50. Bxf4 {[%clk 00:09:21]} {[%emt 00:03:07]} Bd5 {[%clk 00:21:12]}
{[%emt 00:00:30]} 51. Kh4 {[%clk 00:07:28]} {[%emt 00:02:23]} Bc6 {[%clk
00:20:11]} {[%emt 00:01:31]} 52. Rg8+ {[%clk 00:06:09]} {[%emt 00:01:48]} Kh7
{[%clk 00:20:04]} {[%emt 00:00:37]} 53. Rc8 {[%clk 00:06:32]} {[%emt 00:00:07]}
Kg6 {[%clk 00:20:27]} {[%emt 00:00:08]} 54. Bd2 {[%clk 00:06:03]} {[%emt
00:00:58]} Bd5 {[%clk 00:19:34]} {[%emt 00:01:23]} 55. Bc3 {[%clk 00:05:52]}
{[%emt 00:00:41]} Ng5 {[%clk 00:19:18]} {[%emt 00:00:47]} 56. Rf8 {[%clk
00:04:50]} {[%emt 00:01:32]} Ne4 {[%clk 00:19:36]} {[%emt 00:00:12]} 57. Bd4
{[%clk 00:05:16]} {[%emt 00:00:03]} Bc6 {[%clk 00:19:06]} {[%emt 00:01:01]} 58.
Rd8 {[%clk 00:05:07]} {[%emt 00:00:39]} Ng5 {[%clk 00:18:53]} {[%emt 00:00:44]}
59. Kg3 {[%clk 00:04:21]} {[%emt 00:01:15]} Ne6 {[%clk 00:19:16]} {[%emt
00:00:07]} 60. Rd6 {[%clk 00:04:45]} {[%emt 00:00:06]} Kf7 {[%clk 00:19:28]}
{[%emt 00:00:18]} 61. Bb2 {[%clk 00:03:04]} {[%emt 00:02:11]} Ke7 {[%clk
00:19:49]} {[%emt 00:00:10]} 62. Kh4 {[%clk 00:03:11]} {[%emt 00:00:22]} Be8
{[%clk 00:18:53]} {[%emt 00:01:28]} 63. Rd5 {[%clk 00:02:13]} {[%emt 00:01:28]}
Ng7 {[%clk 00:17:06]} {[%emt 00:02:15]} 64. Rd2 {[%clk 00:01:24]} {[%emt
00:01:20]} Bc6 {[%clk 00:17:16]} {[%emt 00:00:21]} 65. Re2+ {[%clk 00:01:47]}
{[%emt 00:00:07]} Ne6 {[%clk 00:16:27]} {[%emt 00:01:18]} 66. Rf2 {[%clk
00:01:59]} {[%emt 00:00:18]} Nxc5 {[%clk 00:16:52]} {[%emt 00:00:06]} 67. Bxf6+
{[%clk 00:01:56]} {[%emt 00:00:33]} Ke6 {[%clk 00:17:22]} 68. g5 {[%clk
00:02:07]} {[%emt 00:00:19]} Ne4 {[%clk 00:17:50]} {[%emt 00:00:02]} 69. Rf4
{[%clk 00:02:00]} {[%emt 00:00:37]} Kf7 {[%clk 00:15:04]} {[%emt 00:03:16]} 70.
Kh5 {[%clk 00:02:04]} {[%emt 00:00:26]} Ng3+ {[%clk 00:14:56]} {[%emt
00:00:38]} 71. Kh6 {[%clk 00:02:19]} {[%emt 00:00:14]} Be4 {[%clk 00:14:18]}
{[%emt 00:01:08]} 72. Bb2+ {[%clk 00:01:19]} {[%emt 00:01:30]} Ke6 {[%clk
00:12:56]} {[%emt 00:01:50]} 73. g6 {[%clk 00:01:23]} {[%emt 00:00:29]} 1-0

[Event "18èmeFestival International d’Echecsde Rochefort"]
[Site "Rochefort, France"]
[Date "2019.02.17"]
[Round "2.4"]
[White "BOUVET, Florian"]
[Black "DELORME, Axel"]
[Result "0-1"]
[TimeControl "1h30 min/40coups + 30 min +  30sec/coup"]
[BlackTitle "GM"]
[WhiteFideId "676357"]
[BlackFideId "632023"]
[WhiteElo "2194"]
[BlackElo "2498"]

1. e4 {[%clk 01:30:57]} {[%emt 00:00:02]} e5 {[%clk 01:30:55]} {[%emt
00:00:05]} 2. Nf3 {[%clk 01:31:23]} {[%emt 00:00:04]} Nc6 {[%clk 01:31:22]}
{[%emt 00:00:03]} 3. Nc3 {[%clk 01:31:50]} {[%emt 00:00:04]} Nf6 {[%clk
01:31:41]} {[%emt 00:00:10]} 4. Bb5 {[%clk 01:32:05]} {[%emt 00:00:15]} Bd6
{[%clk 01:32:07]} {[%emt 00:00:04]} 5. a3 {[%clk 01:32:29]} {[%emt 00:00:07]}
O-O {[%clk 01:32:16]} {[%emt 00:00:21]} 6. d3 {[%clk 01:32:09]} {[%emt
00:00:50]} a6 {[%clk 01:32:33]} {[%emt 00:00:13]} 7. Bc4 {[%clk 01:32:26]}
{[%emt 00:00:12]} Bc5 {[%clk 01:32:19]} {[%emt 00:00:43]} 8. O-O {[%clk
01:31:33]} {[%emt 00:01:24]} h6 {[%clk 01:28:32]} {[%emt 00:04:17]} 9. h3
{[%clk 01:25:46]} {[%emt 00:06:17]} Re8 {[%clk 01:19:49]} {[%emt 00:09:11]} 10.
Re1 {[%clk 01:15:05]} {[%emt 00:11:13]} d6 {[%clk 01:11:52]} {[%emt 00:08:26]}
11. Be3 {[%clk 01:05:07]} {[%emt 00:10:28]} Bxe3 {[%clk 01:11:50]} {[%emt
00:00:31]} 12. fxe3 {[%clk 01:05:07]} {[%emt 00:00:30]} Be6 {[%clk 01:10:17]}
{[%emt 00:02:03]} 13. Bxe6 {[%clk 01:02:21]} {[%emt 00:03:17]} Rxe6 {[%clk
01:09:15]} {[%emt 00:01:31]} 14. Qd2 {[%clk 01:00:01]} {[%emt 00:02:50]} d5
{[%clk 01:01:06]} {[%emt 00:08:39]} 15. exd5 {[%clk 00:58:04]} {[%emt
00:02:28]} Nxd5 {[%clk 01:00:13]} {[%emt 00:01:22]} 16. Nxd5 {[%clk 00:52:58]}
{[%emt 00:05:37]} Qxd5 {[%clk 01:00:29]} {[%emt 00:00:14]} 17. e4 {[%clk
00:52:57]} {[%emt 00:00:31]} Qc5+ {[%clk 00:55:23]} {[%emt 00:05:36]} 18. Qf2
{[%clk 00:53:16]} {[%emt 00:00:11]} Qe7 {[%clk 00:55:00]} {[%emt 00:00:51]} 19.
Qe3 {[%clk 00:52:33]} {[%emt 00:01:15]} Rd8 {[%clk 00:55:00]} {[%emt 00:00:29]}
20. Rad1 {[%clk 00:52:28]} {[%emt 00:00:36]} Nd4 {[%clk 00:45:58]} {[%emt
00:09:32]} 21. c3 {[%clk 00:37:14]} {[%emt 00:15:44]} Nc2 {[%clk 00:45:04]}
{[%emt 00:01:23]} 0-1

[Event "18èmeFestival International d’Echecsde Rochefort"]
[Site "Rochefort, France"]
[Date "2019.02.17"]
[Round "2.2"]
[White "LEMEAUX, David"]
[Black "ZENG, Chongsheng"]
[Result "0-1"]
[TimeControl "1h30 min/40coups + 30 min +  30sec/coup"]
[WhiteTitle "FM"]
[BlackTitle "GM"]
[WhiteFideId "613843"]
[BlackFideId "8603847"]
[WhiteElo "2246"]
[BlackElo "2544"]

1. d4 {[%clk 01:29:43]} {[%emt 00:01:17]} Nf6 {[%clk 01:28:15]} {[%emt
00:02:41]} 2. Nf3 {[%clk 01:30:08]} {[%emt 00:00:09]} g6 {[%clk 01:28:29]}
{[%emt 00:00:15]} 3. Nc3 {[%clk 01:30:22]} {[%emt 00:00:15]} d5 {[%clk
01:28:26]} {[%emt 00:00:33]} 4. Bf4 {[%clk 01:30:38]} {[%emt 00:00:14]} Bg7
{[%clk 01:22:18]} {[%emt 00:06:38]} 5. e3 {[%clk 01:30:21]} {[%emt 00:00:47]}
Bg4 {[%clk 01:21:05]} {[%emt 00:01:42]} 6. Be2 {[%clk 01:30:07]} {[%emt
00:00:44]} O-O {[%clk 01:20:32]} {[%emt 00:01:02]} 7. h3 {[%clk 01:29:58]}
{[%emt 00:00:41]} Bxf3 {[%clk 01:20:54]} {[%emt 00:00:08]} 8. Bxf3 {[%clk
01:30:18]} {[%emt 00:00:10]} c6 {[%clk 01:21:23]} {[%emt 00:00:02]} 9. O-O
{[%clk 01:26:47]} {[%emt 00:04:00]} Nbd7 {[%clk 01:20:54]} {[%emt 00:00:58]} 10.
Ne2 {[%clk 01:06:16]} {[%emt 00:21:01]} Qb6 {[%clk 01:19:30]} {[%emt 00:01:55]}
11. Rb1 {[%clk 01:04:01]} {[%emt 00:02:46]} Rfe8 {[%clk 01:18:46]} {[%emt
00:01:14]} 12. c3 {[%clk 01:03:12]} {[%emt 00:01:18]} a5 {[%clk 01:17:08]}
{[%emt 00:02:08]} 13. Nc1 {[%clk 01:00:22]} {[%emt 00:03:20]} e5 {[%clk
01:17:07]} {[%emt 00:00:31]} 14. dxe5 {[%clk 00:50:41]} {[%emt 00:10:11]} Nxe5
{[%clk 01:17:29]} {[%emt 00:00:08]} 15. Bxe5 {[%clk 00:50:50]} {[%emt
00:00:21]} Rxe5 {[%clk 01:17:57]} {[%emt 00:00:02]} 16. Nd3 {[%clk 00:51:12]}
{[%emt 00:00:07]} Re7 {[%clk 01:17:40]} {[%emt 00:00:46]} 17. Qb3 {[%clk
00:51:02]} {[%emt 00:00:40]} Qa6 {[%clk 01:16:24]} {[%emt 00:01:45]} 18. Rfd1
{[%clk 00:49:23]} {[%emt 00:02:11]} Rae8 {[%clk 01:16:18]} {[%emt 00:00:36]} 19.
Rbc1 {[%clk 00:48:05]} {[%emt 00:01:47]} Nd7 {[%clk 01:05:58]} {[%emt
00:10:50]} 20. Bg4 {[%clk 00:36:19]} {[%emt 00:12:16]} Nb6 {[%clk 01:04:50]}
{[%emt 00:01:38]} 21. Be2 {[%clk 00:32:15]} {[%emt 00:04:34]} Qa7 {[%clk
01:04:53]} {[%emt 00:00:28]} 22. Ne1 {[%clk 00:30:42]} {[%emt 00:02:02]} Nd7
{[%clk 01:04:36]} {[%emt 00:00:48]} 23. Qc2 {[%clk 00:29:05]} {[%emt 00:02:07]}
Nc5 {[%clk 00:59:53]} {[%emt 00:05:11]} 24. Bf3 {[%clk 00:26:34]} {[%emt
00:03:02]} h5 {[%clk 00:57:58]} {[%emt 00:02:25]} 25. Nd3 {[%clk 00:24:51]}
{[%emt 00:02:14]} Ne6 {[%clk 00:58:20]} {[%emt 00:00:08]} 26. h4 {[%clk
00:23:07]} {[%emt 00:02:14]} Bh6 {[%clk 00:57:49]} {[%emt 00:01:00]} 27. g3
{[%clk 00:09:13]} {[%emt 00:14:25]} Ng7 {[%clk 00:58:08]} {[%emt 00:00:11]} 28.
Nf4 {[%clk 00:09:24]} {[%emt 00:00:18]} Qc5 {[%clk 00:48:09]} {[%emt 00:10:29]}
29. c4 {[%clk 00:07:55]} {[%emt 00:02:00]} Bxf4 {[%clk 00:47:24]} {[%emt
00:01:14]} 30. gxf4 {[%clk 00:07:46]} {[%emt 00:00:39]} d4 {[%clk 00:44:38]}
{[%emt 00:03:15]} 31. Rxd4 {[%clk 00:06:27]} {[%emt 00:01:49]} Nf5 {[%clk
00:41:34]} {[%emt 00:03:34]} 32. Rd3 {[%clk 00:06:20]} {[%emt 00:00:37]} Nxh4
{[%clk 00:41:57]} {[%emt 00:00:07]} 33. Bh1 {[%clk 00:06:23]} {[%emt 00:00:27]}
Qf5 {[%clk 00:38:03]} {[%emt 00:04:24]} 34. Kf1 {[%clk 00:05:32]} {[%emt
00:01:21]} Qh3+ {[%clk 00:37:46]} {[%emt 00:00:46]} 35. Ke2 {[%clk 00:05:56]}
{[%emt 00:00:06]} Qh2 {[%clk 00:37:39]} {[%emt 00:00:37]} 36. Rf1 {[%clk
00:02:27]} {[%emt 00:03:59]} Qxf4 {[%clk 00:37:27]} {[%emt 00:00:43]} 37. Qc3
{[%clk 00:02:31]} {[%emt 00:00:26]} Qf5 {[%clk 00:34:19]} {[%emt 00:03:39]} 38.
Kd2 {[%clk 00:01:15]} {[%emt 00:01:46]} Qh3 {[%clk 00:34:23]} {[%emt 00:00:25]}
39. Ke2 {[%clk 00:00:53]} {[%emt 00:00:52]} Nf5 {[%clk 00:34:21]} {[%emt
00:00:33]} 40. Bf3 {[%clk 00:00:44]} {[%emt 00:00:39]} c5 {[%clk 00:23:27]}
{[%emt 00:11:24]} 41. Rh1 {[%clk 00:21:22]} {[%emt 00:09:51]} Nd4+ {[%clk
00:53:46]} {[%emt 00:00:12]} 42. Qxd4 {[%clk 00:21:21]} {[%emt 00:00:31]} Qxh1
{[%clk 00:54:06]} {[%emt 00:00:10]} 43. Qxc5 {[%clk 00:20:37]} {[%emt
00:01:14]} Qc1 {[%clk 00:50:52]} {[%emt 00:03:43]} 44. Qd4 {[%clk 00:20:28]}
{[%emt 00:00:39]} Qc2+ {[%clk 00:47:59]} {[%emt 00:03:24]} 45. Kf1 {[%clk
00:19:42]} {[%emt 00:01:16]} Qb1+ {[%clk 00:48:09]} {[%emt 00:00:20]} 46. Kg2
{[%clk 00:19:38]} {[%emt 00:00:33]} Re5 {[%clk 00:46:49]} {[%emt 00:01:50]} 47.
Rd1 {[%clk 00:19:36]} {[%emt 00:00:33]} Rg5+ {[%clk 00:46:03]} {[%emt
00:01:16]} 48. Kf1 {[%clk 00:19:24]} {[%emt 00:00:42]} Qxa2 {[%clk 00:46:28]}
{[%emt 00:00:06]} 49. Bxb7 {[%clk 00:16:52]} {[%emt 00:03:01]} Rg4 {[%clk
00:46:48]} {[%emt 00:00:09]} 50. e4 {[%clk 00:14:42]} {[%emt 00:02:40]} Qb3
{[%clk 00:47:12]} {[%emt 00:00:07]} 51. Bd5 {[%clk 00:14:57]} {[%emt 00:00:15]}
Qf3 {[%clk 00:46:45]} {[%emt 00:00:56]} 52. Qd3 {[%clk 00:13:05]} {[%emt
00:02:22]} Qg2+ {[%clk 00:46:49]} {[%emt 00:00:25]} 53. Ke2 {[%clk 00:13:19]}
{[%emt 00:00:16]} Rexe4+ {[%clk 00:47:07]} {[%emt 00:00:14]} 54. Bxe4 {[%clk
00:13:31]} {[%emt 00:00:17]} Rxe4+ {[%clk 00:47:33]} {[%emt 00:00:04]} 55. Kd2
{[%clk 00:13:53]} {[%emt 00:00:08]} Qxf2+ {[%clk 00:47:57]} {[%emt 00:00:06]}
56. Kc1 {[%clk 00:14:13]} {[%emt 00:00:10]} Qf4+ {[%clk 00:48:15]} {[%emt
00:00:12]} 0-1



[ePGN "0.1;DGT LiveChess/2.2.3"]